Cogmind - Beta 13 @@@ ROGUE MODE // 2024.05.16 @ 09:39:04 Player: Bits_and_Bytes Result: Destroyed by D-53 Grenadier with Mini Grenade Launcher Performance ------------- Evolutions (1) 500 Regions Visited (4) 800 Robots Destroyed (82) 410 Value Destroyed (1894) 1894 Prototype IDs (3) 60 Alien Tech Used (0) 0 Bonus (319) 319 TOTAL SCORE: 3983 Bonus ------- High Alert Combat Kills 19 Aligned with FarCom 300 Cogmind --------- Core Integrity 0/400 Matter 285/300 Energy 220/250 System Corruption 0% Temperature Hot (270) Movement Treading (240) Ox1 Location -9/Exiles Parts ------- > --- POWER (1) -------- Ion Engine > --- PROPULSION (3) --- Light Treads Light Treads Light Treads > --- UTILITY (3) ------ Huge Storage Unit Layered Light Armor Plating Hacking Suite > --- WEAPON (2) ------- Guided Plasma Cannon Flak Gun > --- INVENTORY (25) --- Ion Engine Light Nuclear Core Light Treads Light Treads Light Treads Light Treads High-capacity Matter Pod (200) Weight Redist. System Structural Scanner Salvage Targeting Computer Improved Salvage Targeting Computer Transmission Jammer ECM Suite Advanced ECM Suite Advanced ECM Suite Hardened Light Armor Plating Shield Generator Decoy Drone Bay EM Pulse Gun Improved EM Pulse Cannon Heavy Assault Rifle Grenade Launcher Remote Datajack Mining Laser Peak State ------------ > --- POWER ------------ Ion Engine > --- PROPULSION ------- Light Treads Light Treads Light Treads > --- UTILITY ---------- Huge Storage Unit Layered Light Armor Plating Hacking Suite > --- WEAPON ----------- Guided Plasma Cannon Flak Gun > --- INVENTORY -------- Ion Engine Light Nuclear Core Light Treads Light Treads Light Treads Light Treads High-capacity Matter Pod Weight Redist. System Structural Scanner Salvage Targeting Computer Improved Salvage Targeting Computer Transmission Jammer ECM Suite Advanced ECM Suite Advanced ECM Suite Hardened Light Armor Plating Shield Generator Decoy Drone Bay EM Pulse Gun Improved EM Pulse Cannon Heavy Assault Rifle Grenade Launcher Remote Datajack Mining Laser [Rating: 30] Favorites ----------- Power Light Nuclear Core Engine Ion Engine Power Core Light Nuclear Core Propulsion Light Treads Treads Light Treads Leg Aluminum Leg Flight Unit Flight Unit Utility Hacking Suite Device Seismic Detector Storage Huge Storage Unit Hackware Hacking Suite Protection Light Armor Plating Weapon Light Assault Rifle Energy Gun Beam Rifle Energy Cannon Improved EM Pulse Cannon Ballistic Gun Light Assault Rifle Ballistic Cannon Light Cannon Launcher Grenade Launcher Special Weapon Mining Laser Build | -11 -10 -9 -9 -9 ------- Run | Yrd Mat Mat Min Exi Slots Evolved 2 | . . 2 . . Power . | . . . . . Propulsion 1 | . . 1 . . Utility 1 | . . 1 . . Weapon . | . . . . . Parts Attached 89 | 7 9 59 13 1 Power 12 | 1 1 9 1 . Engine 7 | 1 1 4 1 . Core 5 | . . 5 . . Reactor . | . . . . . Propulsion 23 | 2 1 16 4 . Treads 12 | 2 1 5 4 . Leg 5 | . . 5 . . Wheel . | . . . . . Hover . | . . . . . Flight 6 | . . 6 . . Utility 26 | 2 3 19 2 . Device 3 | 1 1 1 . . Storage 9 | 1 2 6 . . Processor . | . . . . . Hackware 1 | . . 1 . . Protection 13 | . . 11 2 . Artifact . | . . . . . Weapon 28 | 2 4 15 6 1 Energy Gun 8 | . 1 5 2 . Energy Cannon 2 | . . . 1 1 Ballistic Gun 14 | 2 2 8 2 . Ballistic Cannon 1 | . 1 . . . Launcher 1 | . . . 1 . Special Weapon 2 | . . 2 . . Impact Weapon . | . . . . . Slashing Weapon . | . . . . . Piercing Weapon . | . . . . . Special Melee Weapon . | . . . . . Unidentified Prototypes 1 | . . . . 1 Parts Lost 21 | . . 18 3 . Power 3 | . . 3 . . Propulsion 11 | . . 10 1 . Utility 4 | . . 3 1 . Weapon 3 | . . 2 1 . Highest Loss Streak 7 | . . 7 2 . To Critical Strikes . | . . . . . Average Slot Usage (%) 98 | . 100 96 100 100 Engine 7 | . 14 2 5 11 Core 4 | . . 8 5 . Treads 28 | . 28 24 33 33 Leg 1 | . . 2 . . Flight 1 | . . 3 . . Device 4 | . 14 . . . Storage 11 | . 14 10 11 11 Hackware 7 | . . 10 11 11 Protection 7 | . . 9 11 11 Energy Gun 4 | . . 8 6 . Energy Cannon 1 | . . . 2 11 Ballistic Gun 14 | . 21 13 11 11 Ballistic Cannon 1 | . 5 . . . Naked Turns . | . . . . . Heaviest Build 103 | 14 51 94 100 103 Greatest Support 60 | 40 40 60 60 60 Greatest Overweight (x) 2 | . 1 2 1 1 Average Overweight (x) . | . . . 1 1 Largest Inventory Capacity 25 | 8 20 25 25 25 Average Capacity 18 | 7 17 15 25 25 Most Carried 25 | 6 20 24 25 25 Average Carried 16 | 3 14 13 24 24 Final Capacity 25 | 8 10 25 25 25 Final Carried 25 | 6 10 24 25 25 Class Distribution -------------------- 70% | Scavenger-Mutant 29% | Mutant Dominant Class ---------------- Mutant | -10/Materials Scavenger-Mutant | -9/Materials Scavenger-Mutant | -9/Mines Scavenger-Mutant | -9/Exiles Resources | -11 -10 -9 -9 -9 ----------- Run | Yrd Mat Mat Min Exi Matter Collected 1791 | 302 286 951 252 . Remotely . | . . . . . Salvage Created 2826 | 175 438 1758 423 32 Parts 204 | 11 36 123 31 3 Haulers Intercepted 7 | . 2 5 . . Recyclers Shooed 6 | . 3 2 1 . Parts Field Recycled . | . . . . . Retrieved Matter . | . . . . . Parts Self-Destructed . | . . . . . Prevented . | . . . . . Kills | -11 -10 -9 -9 -9 ------- Run | Yrd Mat Mat Min Exi Combat Hostiles Destroyed 53 | . 9 32 11 1 Guns 42 | . 6 31 5 . Cannons 4 | . 3 . . 1 AOE 6 | . . . 6 . Classes Destroyed 11 | 2 5 3 1 . Worker 2 | . . . 2 . Tunneler 6 | 3 . . 3 . Hauler 7 | . 2 5 . . Recycler 4 | 1 1 2 . . Mechanic 1 | . . 1 . . Operator 4 | . 1 3 . . Watcher 5 | . 2 3 . . Swarmer 14 | . 5 9 . . Grunt 28 | . 4 13 10 1 Brawler 2 | . . 1 1 . Sentry 9 | . . 9 . . Best Kill Streak 6 | 4 2 6 6 1 Combat Bots Only 4 | . 2 4 3 1 Max Kills in Single Turn 4 | 1 1 2 4 1 Gunslinging 1 | . . 1 . . Exploded 2 | . . . 2 . Melee . | . . . . . Uniques/NPCs Destroyed . | . . . . . Combat | -11 -10 -9 -9 -9 -------- Run | Yrd Mat Mat Min Exi Hostile Shots Fired 366 | . 36 275 40 15 Missed 88 | . 12 63 10 3 Damage Taken 3531 | . 221 2567 483 260 Core 432 | . 27 336 41 28 Absorbed by Shields . | . . . . . Redirected to Shielding 52 | . . 52 . . Regen/Repaired (Parts) 37 | . 5 32 . . Core Remaining (%) 94 | 100 89 . . . Volleys Fired 266 | 8 50 176 28 4 Largest 2 | 2 2 2 2 1 Hottest 120 | 40 60 100 79 120 Shots Fired 519 | 16 100 347 52 4 Gun 492 | 16 85 343 47 1 Cannon 18 | . 15 . . 3 Launcher 5 | . . . 5 . Special 4 | . . 4 . . Kinetic 390 | 16 93 251 29 1 Thermal 124 | . 7 96 18 3 Explosive 5 | . . . 5 . Electromagnetic . | . . . . . Robot Hit Streak 17 | 3 6 17 8 3 Robot Miss Streak 7 | 2 7 6 4 3 Penetration Max . | . . . . . Secondary Targets 6 | . . 6 . . Max Gunslinging Chain 1 | . . 1 . . Shots Hit Robots 305 | 8 47 214 32 4 Core Hits 142 | 6 25 87 22 2 Critical Kills 2 | . 2 . . . Critical Parts Destroyed 3 | . . 2 1 . Critical Strikes 14 | . 2 9 3 . Burn 9 | . . 7 2 . Destroy 5 | . 2 2 1 . Melee Attacks . | . . . . . Impact . | . . . . . Slashing . | . . . . . Piercing . | . . . . . Sneak Attacks . | . . . . . Combat Hostiles . | . . . . . Follow-up Attacks . | . . . . . Damage Inflicted 4156 | 66 494 2417 1054 125 Guns 3322 | 66 362 2414 463 17 Cannons 234 | . 126 . . 108 Explosions 588 | . . . 588 . Melee . | . . . . . Ramming 12 | . 6 3 3 . Kinetic 2457 | 66 476 1640 258 17 Thermal 1286 | . 12 774 392 108 Explosive 401 | . . . 401 . Electromagnetic . | . . . . . Impact . | . . . . . Slashing . | . . . . . Piercing . | . . . . . Highest Corruption . | . . . . . Average Corruption . | . . . . . Corruption Purged . | . . . . . Corruption Blocked . | . . . . . Overload Shots . | . . . . . Overflow Damage 32 | . . . 17 15 Projectiles 15 | . . . . 15 Explosions 17 | . . . 17 . Melee . | . . . . . Knockbacks 1 | . 1 . . . Impact . | . . . . . Kinetic 1 | . 1 . . . Secondary . | . . . . . Self-Inflicted Damage 140 | . . . 140 . Shots 5 | . . . 5 . Rammed 5 | . 3 1 1 . Targets Rammed 5 | . 3 1 1 . Kicked . | . . . . . Crushed . | . . . . . Highest Temperature 270 | . 40 209 186 270 Average Temperature 47 | . 20 43 65 156 Received Heat Transfer 1185 | . 48 939 180 18 Siege Activations . | . . . . . Robots Corrupted . | . . . . . Combat Hostiles . | . . . . . Parts Fried . | . . . . . Impact Corruptions . | . . . . . Robots Melted 1 | . . 1 . . Combat Hostiles 1 | . . 1 . . Parts Melted 2 | . . 1 1 . Heat Transferred 3610 | . 25 2479 866 240 Parts Sabotaged . | . . . . . Parts Stolen . | . . . . . Parts Stripped . | . . . . . Power Chain Reactions . | . . . . . Alert | -11 -10 -9 -9 -9 ------- Run | Yrd Mat Mat Min Exi Peak Influence 405 | 20 129 405 404 . Initial 105 | . 13 20 105 . Average 131 | 7 36 184 167 . Maximum Alert Level 2 | . . 2 2 . Low Security (%) 69 | 100 100 56 52 . Level 1 29 | . . 43 44 . Level 2 . | . . . 2 . Level 3 . | . . . . . Level 4 . | . . . . . Level 5 . | . . . . . High Security . | . . . . . Max Security . | . . . . . Squads Dispatched 10 | . 3 6 1 . Investigation 6 | . 2 3 1 . Extermination . | . . . . . Reinforcement 4 | . 1 3 . . Assault . | . . . . . Garrison . | . . . . . Intercept . | . . . . . Searches Triggered . | . . . . . Construction Impeded . | . . . . . Haulers Reinforced . | . . . . . Active Scanning Responses . | . . . . . Cargo Convoy Interrupts . | . . . . . Stealth | -11 -10 -9 -9 -9 --------- Run | Yrd Mat Mat Min Exi Distress Signals 5 | . . 5 . . Communications Jammed . | . . . . . Distress Signals . | . . . . . Times Spotted 92 | . 18 57 11 6 Peak Tracking Total 7 | . 4 7 3 6 Tactical Retreats 8 | . 2 6 . . Traps | -11 -10 -9 -9 -9 ------- Run | Yrd Mat Mat Min Exi Traps Triggered . | . . . . . Indirectly . | . . . . . Trap Hack Attempts . | . . . . . Triggered . | . . . . . Disarmed . | . . . . . Reprogrammed . | . . . . . Reused . | . . . . . Traps Extracted . | . . . . . Installed . | . . . . . Triggered . | . . . . . Machines | -11 -10 -9 -9 -9 ---------- Run | Yrd Mat Mat Min Exi Machines Disabled 6 | . . 1 5 . Max in Single Turn 5 | . . 1 5 . Machines Repaired . | . . . . . Machines Dismantled . | . . . . . Machines Sabotaged . | . . . . . Overloaded Fab Kills . | . . . . . Hacking | -11 -10 -9 -9 -9 --------- Run | Yrd Mat Mat Min Exi Machines Accessed 17 | . 5 6 3 3 Terminals 8 | . 4 4 . . Fabricators . | . . . . . Repair Stations 2 | . 1 1 . . Recycling Units . | . . . . . Scanalyzers 1 | . . 1 . . Garrison Access . | . . . . . Total Hacks 73 | . 19 20 3 31 Successful 63 | . 13 16 3 31 Failed 10 | . 6 4 . . Catastrophic 2 | . 1 1 . . Database Lockouts . | . . . . . Manual 9 | . 4 4 . 1 Terminals 30 | . 16 14 . . Fabricators . | . . . . . Repair Stations 5 | . 3 2 . . Recycling Units . | . . . . . Scanalyzers 4 | . . 4 . . Garrison Access . | . . . . . Terminal Hacks 55 | . 11 10 3 31 Record 38 | . 4 3 . 31 Prototype ID Bank 1 | . . 1 . . Open Door 3 | . . . 3 . Alert Level 2 | . 2 . . . Unreport Threat 2 | . . 2 . . Locate Traps 1 | . . 1 . . Dispatch Records 1 | . 1 . . . Maintenance Status 1 | . . 1 . . Hauler Manifests 3 | . 2 1 . . Registered Components 1 | . 1 . . . Zone Layout 2 | . 1 1 . . Fabricator Hacks . | . . . . . Repair Station Hacks 4 | . 2 2 . . Scan Component 2 | . 1 1 . . Repair 2 | . 1 1 . . Recycling Unit Hacks . | . . . . . Scanalyzer 4 | . . 4 . . Insert Component 2 | . . 2 . . Analyze 2 | . . 2 . . Garrison Access Hacks . | . . . . . Unauthorized Hacks . | . . . . . Terminals . | . . . . . Fabricators . | . . . . . Repair Stations . | . . . . . Recycling Units . | . . . . . Scanalyzers . | . . . . . Garrison Access . | . . . . . Data Cores Recovered . | . . . . . Used . | . . . . . Hacking Detections 8 | . 3 5 . . Full Trace Events 5 | . 2 3 . . Feedback Events . | . . . . . Feedback Blocked . | . . . . . Robot Schematics Acquired . | . . . . . Robots Built . | . . . . . Authchips . | . . . . . Time . | . . . . . Total Robot Build Rating . | . . . . . Part Schematics Acquired 2 | . . 2 . . Parts Built . | . . . . . Authchips . | . . . . . Time . | . . . . . Total Part Build Rating . | . . . . . Parts Repaired 2 | . 1 1 . . Time 52 | . 26 26 . . Parts Recycled . | . . . . . Recycled Matter . | . . . . . Retrieved Matter . | . . . . . Retrieved Components . | . . . . . Parts Scanalyzed 2 | . . 2 . . Part Schematics Acquired 2 | . . 2 . . Parts Damaged . | . . . . . Bothacking | -11 -10 -9 -9 -9 ------------ Run | Yrd Mat Mat Min Exi Used RIF Installer . | . . . . . Robots Hacked . | . . . . . Non-combat . | . . . . . Combat . | . . . . . Robot Hacks Applied . | . . . . . Relay Couplers Released . | . . . . . Fabnet Peak Effective % . | . . . . . Robots Rewired . | . . . . . Allies Hacked . | . . . . . Hacks Repelled . | . . . . . Allies | -11 -10 -9 -9 -9 -------- Run | Yrd Mat Mat Min Exi Total Allies . | . . . . . Largest Group . | . . . . . Highest-Rated Group . | . . . . . Highest-Rated Ally . | . . . . . Total Orders . | . . . . . Ally Attacks . | . . . . . Total Damage . | . . . . . Kills . | . . . . . Allies Corrupted . | . . . . . Allies Melted . | . . . . . Intel | -11 -10 -9 -9 -9 ------- Run | Yrd Mat Mat Min Exi Robot Analysis Total . | . . . . . Derelict Logs Recovered 1 | . . . 1 . Drone Launches . | . . . . . Drone Recoveries . | . . . . . Exploration | -11 -10 -9 -9 -9 ------------- Run | Yrd Mat Mat Min Exi Turns Passed 7609 | 115 2124 2956 1646 768 Spaces Moved 3302 | 47 892 1419 630 314 Core 2 | 2 . . . . Treads 2829 | 45 892 948 630 314 Legs 61 | . . 61 . . Wheels . | . . . . . Hover . | . . . . . Flight 410 | . . 410 . . Fastest Speed 34 | 50 160 34 240 240 Average Speed 190 | 155 211 144 240 240 Slowest Speed 240 | 160 240 240 240 240 Overloaded Moves . | . . . . . Propulsion Burnouts . | . . . . . Robots Hopped 3 | . . 3 . . Cave-ins Triggered . | . . . . . Exploration Rate (%) 68 | 5 96 91 90 62 Regions Visited 4 Branch Regions 2 Pre-discovered Areas 1 | . . . . 1 Known Exits Taken . | . . . . . Unknown Exits Taken 4 | 1 1 1 1 . Scrap Searched 1 | . . . 1 . Spaces Dug 23 | . . 3 20 . Terrain Destroyed 73 | . . 3 70 . Melee . | . . . . . Projectile 3 | . . 3 . . AOE 70 | . . . 70 . Terrain Rammed . | . . . . . Walls Destroyed . | . . . . . Machines Disabled . | . . . . . Actions | -11 -10 -9 -9 -9 --------- Run | Yrd Mat Mat Min Exi Total 4150 | 71 1047 1996 712 324 Wait 338 | 4 29 281 21 3 Move 3292 | 46 891 1412 629 314 Hop 3 | . . 3 . . Pick Up 83 | 6 33 33 10 1 Fast Attach 26 | 7 2 16 1 . Attach 18 | . 1 14 3 . Detach 2 | . . 2 . . Swap 45 | . 6 29 9 1 Drop 72 | . 32 29 10 1 Fire 266 | 8 50 176 28 4 Melee . | . . . . . Ram . | . . . . . Kick . | . . . . . Crush 5 | . 3 1 1 . Escape Stasis . | . . . . . Rewire . | . . . . . Trap . | . . . . . Miscellaneous . | . . . . . Route ------- -11/Scrapyard -10/Materials (discovered 5 exits: *Mat x3 / [*Min] / [*Sub]) -9/Materials (discovered 4 exits: [*Mat x3] / *Min) -9/Mines (discovered 3 exits: [*Mat] / *Exi / [*Zio]) -9/Exiles History --------- Turn | Location | Event 30 | -11/Scrapyard | Discovered new exit (range 16) 116 | -11/Scrapyard | Entered Materials 291 | -10/Materials | Discovered new exit (range 16) 328 | -10/Materials | Build established: Mutant 731 | -10/Materials | Discovered new exit (range 7) 875 | -10/Materials | Discovered new exit (range 16) 1287 | -10/Materials | Repaired Flight Unit 1400 | -10/Materials | Discovered new exit (range 8) 2010 | -10/Materials | Discovered new exit (range 9) 2240 | -10/Materials | Entered another Materials area 2240 | -9/Materials | Evolved 2 slots: Propulsion x1, Utility x1 2552 | -9/Materials | Build established: Scavenger-Mutant 2676 | -9/Materials | Lost 7 parts (1p3n1u2w) 2696 | -9/Materials | Core integrity fell below 50% 3320 | -9/Materials | Repaired Lgt. Treads 3707 | -9/Materials | Discovered new exit (range 5) 3912 | -9/Materials | Discovered new exit (range 9) 4112 | -9/Materials | Core integrity fell below 20% 4474 | -9/Materials | Discovered new exit (range 16) 4737 | -9/Materials | Discovered new exit (range 9) 5196 | -9/Materials | Entered Mines 5302 | -9/Mines | Excavation squad dispatched 5302 | -9/Mines | A large section of the Mines collapsed 5497 | -9/Mines | Found the Drone Emporium 5508 | -9/Mines | Found Prototype Device 5552 | -9/Mines | Excavation squad dispatched 5630 | -9/Mines | Learned Materials emergency access door positions 5802 | -9/Mines | Excavation squad dispatched 5932 | -9/Mines | Met a Derelict shopkeep closing up shop 6052 | -9/Mines | Excavation squad dispatched 6083 | -9/Mines | Deemed a non-threat by the Exiles lab entrance 6083 | -9/Mines | Discovered new exit (range 5) 6137 | -9/Mines | Discovered new exit (range 14) 6487 | -9/Mines | Met a Derelict who couldn't figure out how to use a Trap Extractor 6606 | -9/Mines | A Derelict revealed a hidden shortcut to a safe place 6842 | -9/Mines | Entered Exiles 6902 | -9/Exiles | Met 8R-AWN 6943 | -9/Exiles | Met EX-HEX 7075 | -9/Exiles | Met EX-DEC 7150 | -9/Exiles | Learned location of Zion (-7) 7198 | -9/Exiles | Met EX-BIN 7231 | -9/Exiles | Aligned with FarCom system 7234 | -9/Exiles | Given EX-Vault access code 7397 | -9/Exiles | Opened EX-Vault 7438 | -9/Exiles | Warned to stay clear of 0b10 Research branches 7497 | -9/Exiles | Exiles lab attacked by MAIN.C 7525 | -9/Exiles | Found Prototype Energy Cannon 7526 | -9/Exiles | Identified Gui. Plasma Cannon 7610 | -9/Exiles | Destroyed by D-53 Grenadier with Mini Grenade Launcher Last Messages --------------- And if we have to leave here due to unforeseen circumstances, don't worry the FarCom system will continue to maintain contact via our distributed network. EX-BIN: And don't even think about spreading that code around. We're gonna change it right after you leave. Most certainly not to something like 1234 which I did last time as a little joke and some thief managed to sneak in here and steal a few of HEX's prototypes. 07497_ EXILES: Incoming Unaware force detected on approach from Mines. Prepare for evacuation. 07517_ Dropped Beam Rifle. 07525_ Acquired Prototype Energy Cannon. 07526_ Identified Gui. Plasma Cannon. 07532_ EXILES: Lab perimeter alert, evacuate immediately. 07599_ Slug penetrates Wall. 07601_ Machine disabled. 07604_ The unstable cave ceiling collapses. 07604_ G-34 Mercenary destroyed. 07606_ Destroyed Shock Absorption System. 07608_ The unstable cave ceiling collapses. 07609_ D-53 Grenadier heat damages Launcher Guidance Computer. Map ----- +----------------------------------------------------+ | ???????????????????????# #???????????????????? | | ???????????????????????# #########???????????? | | ???????????????????????# ##""""""#???????????? | | ???????????????????????# ## """#???????????? | | ???????????????????????# X""#???????????? | | ???????????????????????# ## """#???????????? | | ???????????????######### ##""""""#???????????? | | ???????????????#""""""## #########???????????? | | ???????????????#"""" ## #???????????????????? | | ???????????????#""X" #???????????????????? | | ???????????????#" #???????????????????? | | ???????????????#" ## #???????????????????? | | ???????????????#""""""## #?#########?????????? | | ???????????????##"###### #?#"""""""#?????????? | | ??????????????? "?????# #?#"""""""#?????????? | | ??????????????"""??????# #?#"""""""#?????????? | | ??????????????"""?????## ###"" """"#?????????? | | ??????????????????????#" """"#?????????? | | ??????????????????????#" """#?????????? | | ??????????????????????#" """#?????????? | | ??????????????????????#" """#?????????? | | ????????#######??????## """#?????????? | | ???????# """#??????# """##????????? | | ???????#"" """#?????## """""????????? | | ???????#"" #?????# """##????????? | | ???????#"" #?????# @ "X" """""????????? | | ???????#"" "#?????# """ # ????????? | | ???????# ""#?????# # """""""""#?????????? | | ???????#"" ""#?????## ###########?????????? | | ???????### ###??????##" #???????????????????? | | ###????### ###?######"" =#???????????????????? | | """#####X# #"###""""""" [%##??????????????????? | | """""" " "" !h##???###########???? | | "" """ " d #####"""""""""##??? | | " " g " """ """"##?? | | g "" " #?? | | h " """#?? | | " "#?? | | # " "##? | | ##" ""## | | ?#""" """""" """ | | ##" ######""" " | | #"" ""##?????####""" | | #""" """##?????????##""" | | """ """##???????????#"""" | | """ ""#???????????##"" | | "" ########??####"""" | | """ ## ####""" | | "" """" | | #"" | +----------------------------------------------------+ Best States ------------- Heat Dissipation 28 Energy Generation 14 Energy Capacity 265 Matter Stores 300 Matter Capacity 300 Sight Range 16 Terrain Scan Density 10 ECM Strength 1 Armor Coverage 225 Propulsion Shielding 33 Evasion (%) 63 Recoil Reduction 3 Offensive Hacking 10 Item Schematics ----------------- Salvage Targeting Computer | -9/Materials | Scanalyzed Lgt. Nuclear Core | -9/Materials | Scanalyzed Robot Schematics ------------------ None Fabricated ------------ Nothing Alien Tech Used ----------------- None Achievements -------------- Librarian Challenges ------------ None Game ------ Seed QuantumMetafieldShield Manual? 0 Play Time 01:04:27 Cumulative 18.6 hours Start 2024.05.14 @ 21:45:41 End 2024.05.16 @ 09:39:04 Sessions 5 Manual Loads 0 Difficulty Rogue Special Mode None Game No. 18 Rogue 18 Adventurer 0 Explorer 0 Win Type - Total 0 Types 0/0/0/0/0/0/0/0/0 Lore% 14 Gallery% 25 Achievement% 21 Wizard Run 0 Options --------- Layout 0 ASCII 0 Keyboard 0 Movement Mouse Keybinds 0 Fullscreen 1 Font 24/Smallcaps Map View 76x50 Zoom Use 0% Tactical HUD 1 Map Filters NONE Filters NONE Steam 1 RUN: 8de92062-d84c-4533-9133-9a0da312d3ef